Cogmind - Beta 14 @@@ ROGUE MODE // 2024.08.13 @ 04:29:11 Player: Cepulka Result: Destroyed by S-10 Pest with Light Assault Rifle Performance ------------- Evolutions (2) 1000 Regions Visited (3) 600 Robots Destroyed (46) 230 Value Destroyed (852) 852 Prototype IDs (0) 0 Alien Tech Used (0) 0 Bonus (48) 48 TOTAL SCORE: 2730 Bonus ------- High Alert Combat Kills 48 Cogmind --------- Core Integrity 0/550 Matter 78/300 Energy 100/100 System Corruption 0% Temperature Cool (0) Movement Core (350) Ox6 Location -8/Materials Parts ------- > --- POWER (3) -------- (None) > --- PROPULSION (2) --- (None) > --- UTILITY (4) ------ Large Storage Unit > --- WEAPON (2) ------- (None) > --- INVENTORY (15) --- Aluminum Leg Wheel Wheel Heat Sink Medium Storage Unit Medium Storage Unit Large Storage Unit Large Battery (200) Light EM Pulse Cannon Mini Grenade Launcher Mini Grenade Launcher Peak State ------------ > --- POWER ------------ Light Ion Engine > --- PROPULSION ------- Aluminum Leg Carbon-fiber Leg > --- UTILITY ---------- Large Storage Unit Structural Scanner Terrain Scanner Utility Shielding > --- WEAPON ----------- High-powered Shotgun Mini Grenade Launcher > --- INVENTORY -------- Aluminum Leg Wheel Wheel Heat Sink Medium Storage Unit Medium Storage Unit Large Storage Unit Large Battery Light EM Pulse Cannon Mini Grenade Launcher Mini Grenade Launcher [Rating: 15] Favorites ----------- Power Light Ion Engine Engine Light Ion Engine Propulsion Wheel Leg Carbon-fiber Leg Wheel Wheel Utility Terrain Scanner Device Terrain Scanner Storage Small Storage Unit Processor Terrain Scan Processor Protection Utility Shielding Weapon Mini Grenade Launcher Energy Gun Small Laser Energy Cannon Light EM Pulse Cannon Ballistic Gun High-powered Shotgun Launcher Mini Grenade Launcher Build | -11 -10 -9 -8 ------- Run | Yrd Mat Mat Mat Slots Evolved 4 | . . 2 2 Power 2 | . . . 2 Propulsion . | . . . . Utility 2 | . . 2 . Weapon . | . . . . Parts Attached 30 | 5 7 7 11 Power 3 | 1 1 1 . Engine 3 | 1 1 1 . Core . | . . . . Reactor . | . . . . Propulsion 6 | 2 1 . 3 Treads . | . . . . Leg 2 | . . . 2 Wheel 4 | 2 1 . 1 Hover . | . . . . Flight . | . . . . Utility 10 | . 2 2 6 Device 2 | . 1 . 1 Storage 6 | . 1 1 4 Processor 1 | . . 1 . Hackware . | . . . . Protection 1 | . . . 1 Artifact . | . . . . Weapon 11 | 2 3 4 2 Energy Gun 5 | 2 2 1 . Energy Cannon 1 | . . . 1 Ballistic Gun 1 | . . . 1 Ballistic Cannon . | . . . . Launcher 4 | . 1 3 . Special Weapon . | . . . . Impact Weapon . | . . . . Slashing Weapon . | . . . . Piercing Weapon . | . . . . Special Melee Weapon . | . . . . Unidentified Prototypes . | . . . . Parts Lost 10 | . . 2 8 Power 2 | . . 1 1 Propulsion 3 | . . 1 2 Utility 3 | . . . 3 Weapon 2 | . . . 2 Highest Loss Streak 8 | . . 1 8 To Critical Strikes . | . . . . Average Slot Usage (%) 83 | . 91 83 76 Engine 11 | . 14 11 8 Leg 2 | . . . 10 Wheel 19 | . 28 20 6 Device 12 | . 10 11 17 Storage 13 | . 9 15 13 Processor 1 | . . 2 . Energy Gun 9 | . 14 10 . Energy Cannon 1 | . . . 6 Launcher 11 | . 13 11 8 Peak Build Rating 15 | 5 7 12 15 Average Rating 8 | 3 6 8 12 On Entrance 5 | . 5 7 11 Naked Turns . | . . . . Heaviest Build 33 | 7 14 14 33 Greatest Support 25 | 20 20 20 25 Greatest Overweight (x) 8 | . . 1 8 Average Overweight (x) . | . . . 1 Largest Inventory Capacity 15 | 5 8 8 15 Average Capacity 8 | 5 7 8 14 Most Carried 11 | 5 8 8 11 Average Carried 7 | 3 5 7 9 Final Capacity 15 | 5 8 8 15 Final Carried 11 | 5 8 7 11 Class Distribution -------------------- 100% | Mutant Dominant Class ---------------- Mutant | -10/Materials Mutant | -9/Materials Mutant | -8/Materials Resources | -11 -10 -9 -8 ----------- Run | Yrd Mat Mat Mat Matter Collected 682 | 250 99 333 . Remotely . | . . . . Salvage Created 708 | 50 221 391 46 Parts 75 | 2 25 38 10 Haulers Intercepted 2 | . . 2 . Recyclers Shooed 2 | . 1 1 . Parts Field Recycled . | . . . . Retrieved Matter . | . . . . Parts Self-Destructed . | . . . . Prevented . | . . . . Kills | -11 -10 -9 -8 ------- Run | Yrd Mat Mat Mat Combat Hostiles Destroyed 26 | 1 7 11 7 Guns 2 | 1 . . 1 AOE 24 | . 7 11 6 Classes Destroyed 10 | 1 4 5 . Worker 3 | . . 3 . Builder 8 | . 4 3 1 Tunneler 1 | . 1 . . Hauler 2 | . . 2 . Recycler 1 | . . 1 . Operator 1 | . . 1 . Watcher 4 | . 1 3 . Swarmer 12 | . 3 2 7 Grunt 11 | 1 4 6 . Sentry 3 | . . 3 . Best Kill Streak 14 | 1 10 14 8 Combat Bots Only 7 | 1 5 7 7 Max Kills in Single Turn 5 | 1 4 5 3 Gunslinging . | . . . . Exploded 3 | . 2 2 3 Melee . | . . . . Uniques/NPCs Destroyed . | . . . . Combat | -11 -10 -9 -8 -------- Run | Yrd Mat Mat Mat Hostile Shots Fired 208 | 5 33 37 133 Missed 64 | 2 10 15 37 Damage Taken 1707 | 35 205 299 1168 Core 727 | 11 52 110 554 Absorbed by Shields . | . . . . Redirected to Shielding 53 | . . . 53 Core Remaining (%) 80 | 95 74 72 . Volleys Fired 36 | 3 11 14 8 Largest 2 | 2 2 2 2 Hottest 86 | 80 70 70 86 Shots Fired 69 | 6 21 28 14 Gun 24 | 6 11 1 6 Cannon 2 | . . . 2 Launcher 43 | . 10 27 6 Special . | . . . . Kinetic 6 | . . . 6 Thermal 11 | . 10 1 . Explosive 43 | . 10 27 6 Electromagnetic 9 | 6 1 . 2 Robot Hit Streak 7 | 3 4 7 3 Robot Miss Streak 4 | 1 4 2 2 Penetration Max . | . . . . Secondary Targets . | . . . . Shots Hit Robots 41 | 4 9 19 9 Core Hits 66 | 2 17 37 10 Critical Kills . | . . . . Critical Parts Destroyed . | . . . . Critical Strikes . | . . . . Melee Attacks . | . . . . Impact . | . . . . Slashing . | . . . . Piercing . | . . . . Sneak Attacks . | . . . . Combat Hostiles . | . . . . Follow-up Attacks . | . . . . Damage Inflicted 2775 | 51 630 1505 589 Guns 217 | 51 65 . 101 Cannons 20 | . . . 20 Explosions 2538 | . 565 1505 468 Melee . | . . . . Ramming . | . . . . Kinetic 101 | . . . 101 Thermal 41 | . 41 . . Explosive 2538 | . 565 1505 468 Electromagnetic 95 | 51 24 . 20 Impact . | . . . . Slashing . | . . . . Piercing . | . . . . Highest Corruption 1 | . 1 . . Average Corruption 1 | . 1 . . Corruption Purged . | . . . . Corruption Blocked . | . . . . Effects 1 | . 1 . . Message Errors 1 | . 1 . . Overload Shots . | . . . . Overflow Damage 215 | . 44 105 66 Projectiles . | . . . . Explosions 215 | . 44 105 66 Melee . | . . . . Knockbacks . | . . . . Impact . | . . . . Kinetic . | . . . . Secondary . | . . . . Self-Inflicted Damage 200 | . 10 40 150 Shots 8 | . 1 3 4 Rammed . | . . . . Targets Rammed . | . . . . Kicked . | . . . . Crushed . | . . . . Highest Temperature 87 | 72 87 6 14 Average Temperature 31 | 40 40 3 6 Received Heat Transfer 327 | 18 24 60 225 Siege Activations . | . . . . Robots Corrupted . | . . . . Combat Hostiles . | . . . . Parts Fried . | . . . . Impact Corruptions . | . . . . Robots Melted . | . . . . Combat Hostiles . | . . . . Parts Melted . | . . . . Heat Transferred 100 | . 100 . . Parts Sabotaged . | . . . . Parts Stolen . | . . . . Parts Stripped . | . . . . Power Chain Reactions . | . . . . Alert | -11 -10 -9 -8 ------- Run | Yrd Mat Mat Mat Peak Influence 487 | 20 341 487 429 Initial 204 | . 13 143 204 Average 205 | 3 150 235 264 Maximum Alert Level 2 | . 1 2 2 Low Security (%) 54 | 100 70 63 . Level 1 33 | . 29 22 78 Level 2 11 | . . 14 21 Level 3 . | . . . . Level 4 . | . . . . Level 5 . | . . . . High Security . | . . . . Max Security . | . . . . Squads Dispatched 4 | . 1 2 1 Investigation . | . . . . Extermination . | . . . . Reinforcement 3 | . 1 2 . Assault . | . . . . Garrison 1 | . . . 1 Intercept . | . . . . Searches Triggered . | . . . . Construction Impeded . | . . . . Haulers Reinforced . | . . . . Active Scanning Responses . | . . . . Cargo Convoy Interrupts . | . . . . Stealth | -11 -10 -9 -8 --------- Run | Yrd Mat Mat Mat Distress Signals 3 | . . 2 1 Communications Jammed . | . . . . Distress Signals . | . . . . Times Spotted 52 | 1 10 18 23 Peak Tracking Total 14 | 1 6 6 14 Tactical Retreats 1 | . . . 1 Traps | -11 -10 -9 -8 ------- Run | Yrd Mat Mat Mat Traps Triggered 1 | . 1 . . Indirectly . | . . . . Trap Hack Attempts . | . . . . Triggered . | . . . . Disarmed . | . . . . Reprogrammed . | . . . . Reused . | . . . . Traps Extracted . | . . . . Installed . | . . . . Triggered . | . . . . Machines | -11 -10 -9 -8 ---------- Run | Yrd Mat Mat Mat Machines Disabled 7 | . 3 4 . Max in Single Turn 3 | . 1 3 . Machines Repaired . | . . . . Machines Dismantled . | . . . . Machines Sabotaged . | . . . . Overloaded Fab Kills . | . . . . Hacking | -11 -10 -9 -8 --------- Run | Yrd Mat Mat Mat Machines Accessed 3 | . 2 1 . Terminals 2 | . 2 . . Fabricators . | . . . . Repair Stations 1 | . . 1 . Recycling Units . | . . . . Scanalyzers . | . . . . Garrison Access . | . . . . Total Hacks 8 | . 6 2 . Successful 4 | . 3 1 . Failed 4 | . 3 1 . Catastrophic . | . . . . Database Lockouts . | . . . . Manual 1 | . 1 . . Terminals 6 | . 6 . . Fabricators . | . . . . Repair Stations 2 | . . 2 . Recycling Units . | . . . . Scanalyzers . | . . . . Garrison Access . | . . . . Terminal Hacks 3 | . 3 . . Record 1 | . 1 . . Alert Level 2 | . 2 . . Fabricator Hacks . | . . . . Repair Station Hacks 1 | . . 1 . Scan Component 1 | . . 1 . Recycling Unit Hacks . | . . . . Scanalyzer . | . . . . Garrison Access Hacks . | . . . . Unauthorized Hacks . | . . . . Terminals . | . . . . Fabricators . | . . . . Repair Stations . | . . . . Recycling Units . | . . . . Scanalyzers . | . . . . Garrison Access . | . . . . Data Cores Recovered . | . . . . Used . | . . . . Hacking Detections 2 | . 2 . . Full Trace Events 2 | . 2 . . Feedback Events 1 | . 1 . . Corruption 1 | . 1 . . Feedback Blocked . | . . . . Robot Schematics Acquired . | . . . . Robots Built . | . . . . Authchips . | . . . . Time . | . . . . Total Robot Build Rating . | . . . . Part Schematics Acquired . | . . . . Parts Built . | . . . . Authchips . | . . . . Time . | . . . . Total Part Build Rating . | . . . . Parts Repaired . | . . . . Time . | . . . . Parts Recycled . | . . . . Recycled Matter . | . . . . Retrieved Matter . | . . . . Retrieved Components . | . . . . Parts Scanalyzed . | . . . . Part Schematics Acquired . | . . . . Parts Damaged . | . . . . Bothacking | -11 -10 -9 -8 ------------ Run | Yrd Mat Mat Mat Used RIF Installer . | . . . . Robots Hacked . | . . . . Non-combat . | . . . . Combat . | . . . . Robot Hacks Applied . | . . . . Relay Couplers Released . | . . . . Fabnet Peak Effective % . | . . . . Robots Rewired . | . . . . Allies Hacked . | . . . . Hacks Repelled . | . . . . Allies | -11 -10 -9 -8 -------- Run | Yrd Mat Mat Mat Total Allies . | . . . . Largest Group . | . . . . Highest-Rated Group . | . . . . Highest-Rated Ally . | . . . . Total Orders . | . . . . Ally Attacks . | . . . . Total Damage . | . . . . Kills . | . . . . Allies Corrupted . | . . . . Allies Melted . | . . . . Intel | -11 -10 -9 -8 ------- Run | Yrd Mat Mat Mat Robot Analysis Total . | . . . . Derelict Logs Recovered . | . . . . Drone Launches . | . . . . Drone Recoveries . | . . . . Exploration | -11 -10 -9 -8 ------------- Run | Yrd Mat Mat Mat Turns Passed 918 | 76 181 476 185 Spaces Moved 719 | 73 168 398 80 Core 26 | 22 . . 4 Treads . | . . . . Legs 42 | . . . 42 Wheels 651 | 51 168 398 34 Hover . | . . . . Flight . | . . . . Fastest Speed 50 | 50 80 80 80 Average Speed 90 | 70 80 82 172 Slowest Speed 450 | 80 80 95 450 Overloaded Moves . | . . . . Propulsion Burnouts . | . . . . Robots Hopped . | . . . . Cave-ins Triggered . | . . . . Exploration Rate (%) 22 | 8 36 35 9 Regions Visited 3 Branch Regions . Pre-discovered Areas . | . . . . Known Exits Taken . | . . . . Unknown Exits Taken 3 | 1 1 1 . Scrap Searched . | . . . . Spaces Dug . | . . . . Terrain Destroyed 240 | . 36 165 39 Melee . | . . . . Projectile . | . . . . AOE 240 | . 36 165 39 Terrain Rammed . | . . . . Walls Destroyed . | . . . . Machines Disabled . | . . . . Actions | -11 -10 -9 -8 --------- Run | Yrd Mat Mat Mat Total 908 | 90 192 516 110 Wait 94 | . . 92 2 Move 716 | 72 167 397 80 Hop . | . . . . Pick Up 25 | 10 5 3 7 Fast Attach 2 | . . 2 . Attach 10 | 5 3 1 1 Detach . | . . . . Swap 18 | . 4 4 10 Drop 7 | . 2 3 2 Fire 36 | 3 11 14 8 Melee . | . . . . Ram . | . . . . Kick . | . . . . Crush . | . . . . Escape Stasis . | . . . . Rewire . | . . . . Trap . | . . . . Miscellaneous . | . . . . Route ------- -11/Scrapyard -10/Materials -9/Materials -8/Materials History --------- Turn | Location | Event 2 | -11/Scrapyard | Met Revision 17 50 | -11/Scrapyard | Discovered new exit (range 8) 77 | -11/Scrapyard | Entered Materials 186 | -10/Materials | Discovered new exit (range 16) 258 | -10/Materials | Entered another Materials area 258 | -9/Materials | Evolved 2 slots: Utility x2 306 | -9/Materials | Build established: Mutant 697 | -9/Materials | Destroyed 7 combat bots 716 | -9/Materials | Discovered new exit (range 12) 734 | -9/Materials | Entered another Materials area 734 | -8/Materials | Evolved 2 slots: Power x2 874 | -8/Materials | Garrison activated, responded to threat 901 | -8/Materials | Destroyed 7 combat bots 913 | -8/Materials | Core integrity fell below 50% 916 | -8/Materials | Core integrity fell below 20% 919 | -8/Materials | Destroyed by S-10 Pest with Light Assault Rifle Last Messages --------------- Lgt. Ion Engine destroyed. Destroyed Lgt. Ion Engine. K-01 Serf collects debris. Critical hit (Burn: +37). The unstable cave ceiling collapses. Aluminum Leg destroyed. K-01 Serf collects debris. T-07 Excavator suffers critical hit (Burn). S-10 Pest destroyed. The unstable cave ceiling collapses. Carbon-fiber Leg destroyed. Terrain Scanner destroyed. Hpw. Shotgun destroyed. K-01 Serf collects debris. S-10 Pest destroyed. K-01 Serf collects debris. Structural Scanner destroyed. K-01 Serf collects debris. M-13 Machinist repairs G-47 Trooper. Utility Shielding destroyed. Map ----- +----------------------------------------------------+ | | | | | | | | | | | | | | | | | | | | | | | | | | | | | ?#?????????????#????????#???????????????????????? | | ????????#???################## ?????????????????? | | ??????#???#?################## ?????????????????? | | ??#???#???#?## ### ! # ???*?????????????? | | ??########??## ### # ##??????????? | | ###########?## """ ### """ ##+######??????????? | | ## !! ###?## """ ### """ + ??????????? | | # !##### """ ###* """ ##????????????? | | # ##### ### Y ##????????????? | | # ########+### # # ###???????????? | | k ########??????? | | ########+## @ * # ###### ??????? | | ######## s [ * # ??????? | | ##########???##""" * Y # ??????? | | #########????##""" ] [ mg Ys + ??????? | | ###?#?????#??##""" # ??????? | | #?#?????????### ####= # ??????? | | ??????? ???? # # ######? ####??????? | | ??????? ? ?? ######## s ####???? ####??????? | | ???????????? ######### ####??????????#?????? | | #???????????????????###%*Y###??????????#??????? | | ????#?????? ???????"? #ss=# ??????????????????? | | ?????????#????? ????? # # ???? ?????????????? | | ????????????????????? # # ??????????????????? | | ??????????#????? ? ?? # # ??????????????????? | | ????????????????????? ? # # ??????????????????? | | ????????????? ????????? / + ??????????????????? | | ?????????????????##????## # ??? ??????????????? | | ???????????????????#???## ##??????????????????? | | ??????????????????????? ??????????????????? | | ????????????????????????? ????????????????????? | | ????????????????????????????????????????????????? | | ????????????????????????????????????????????????? | | ????????????????????????????????????????????????? | | ????????????????????????????????????????????????? | | ????????????????????????????????????????????????? | +----------------------------------------------------+ Best States ------------- Heat Dissipation 31 Energy Generation 10 Energy Capacity 325 Matter Stores 300 Matter Capacity 300 Sight Range 16 Terrain Scan Range 14 Terrain Scan Density 85 Utility Shielding 33 Evasion (%) 50 Item Schematics ----------------- None Robot Schematics ------------------ None Fabricated ------------ Nothing Alien Tech Used ----------------- None Achievements -------------- Loot Pinata Remodeling Troublemaker Challenges ------------ None Game ------ Seed CoilAssaultPlating Manual? 0 Play Time 00:31:06 Cumulative 0.8 hours Start 2024.08.13 @ 03:54:19 End 2024.08.13 @ 04:29:11 Sessions 1 Manual Loads 0 Difficulty Rogue Special Mode None Game No. 4 Rogue 4 Adventurer 0 Explorer 0 Win Type - Total 0 Types 0/0/0/0/0/0/0/0/0 Lore% 0 Gallery% 2 Achievement% 3 Wizard Run 0 Options --------- Layout 1 ASCII 0 Keyboard 0 Movement Numpad Keybinds 0 Fullscreen 2 Font 24/Terminus Map View 50x35 Zoom Use 0% Tactical HUD 0 Map Filters NONE Filters NONE Steam 1 RUN: 15ccfab0-97c9-406b-b0ac-2bc428ea66c9